bitfinex/quotes_SOLUSD_20241205
["timestamp","ask_amount","ask_price","bid_price","bid_amount"]
[1733399066742,7.99542806,239.81,239.74,7.99542806]
[1733399067654,6.99542806,239.81,239.74,7.99542806]
[1733399068229,6.99542806,239.81,239.64,31.98171224]
[1733399068433,6.99542806,239.81,239.73,7.99542806]
[1733399068973,6.99542806,239.81,239.72,7.99542806]
[1733399069437,6.99542806,239.81,239.74,7.99542806]
[1733399069757,23.776884,239.81,239.74,7.99542806]
[1733399069932,23.776884,239.81,239.65,0.12549]
[1733399069933,31.77231206,239.81,239.73,7.99542806]
[1733399070342,7.99542806,239.77,239.67,20.12549]
[1733399070558,1.0423,239.84,239.65,0.12549]
[1733399070559,1.0423,239.84,239.74,7.99542806]
[1733399070724,7.99542806,239.85,239.78,7.99542806]
[1733399070928,7.99542806,239.85,239.77,7.99542806]
[1733399071659,7.99542806,239.86,239.78,7.99542806]
[1733399071954,1.0419,239.93,239.79,20.0]
[1733399072162,7.99542806,239.91,239.83,7.99542806]
[1733399072328,7.99542806,239.91,239.79,20.0]
[1733399072524,7.99542806,239.91,239.82,7.99542806]
[1733399072955,7.99542806,239.91,239.79,20.0]
[1733399073168,7.99542806,239.91,239.82,7.99542806]
[1733399075159,7.99542806,239.89,239.79,20.0]
[1733399075341,7.99542806,239.89,239.8,7.99542806]
[1733399075671,7.99542806,239.89,239.82,7.99542806]
[1733399077758,7.99542806,239.91,239.82,7.99542806]
[1733399078059,7.99542806,239.91,239.77,20.0]
[1733399078060,20.2944,239.94,239.84,7.99542806]
[1733399078362,7.99542806,239.92,239.84,7.99542806]
[1733399079665,7.99542806,239.92,239.78,0.12549]
[1733399079864,7.99542806,239.92,239.84,7.99542806]
[1733399082635,7.99542806,239.86,239.77,7.99542806]
[1733399082939,7.99542806,239.82,239.73,7.99542806]
[1733399084567,7.99542806,239.82,239.65,10.4316]
[1733399084568,26.93552806,239.84,239.75,7.99542806]
[1733399084767,18.9401,239.84,239.75,7.99542806]
[1733399085161,18.9401,239.84,239.77,7.99542806]
[1733399086146,26.93552806,239.84,239.75,7.99542806]
[1733399087169,7.99542806,239.82,239.69,10.4299]
[1733399087464,7.99542806,239.82,239.73,7.99542806]
[1733399088740,19.9824,239.84,239.67,20.0]
[1733399088741,7.99542806,239.8,239.67,20.0]
[1733399088945,7.99542806,239.8,239.72,7.99542806]
[1733399089767,23.776884,239.79,239.67,20.0]
[1733399089953,23.776884,239.79,239.71,7.99542806]
[1733399090575,7.99542806,239.8,239.67,20.0]
[1733399090749,7.99542806,239.8,239.71,7.99542806]
[1733399091954,7.99542806,239.78,239.7,7.99542806]
[1733399092245,7.99542806,239.72,239.58,1.66816983]
[1733399092446,7.99542806,239.72,239.65,7.99542806]
[1733399092675,7.99542806,239.73,239.66,7.99542806]
[1733399093703,7.99542806,239.71,239.63,7.99542806]
[1733399093875,7.99542806,239.72,239.64,7.99542806]
[1733399094773,7.99542806,239.67,239.52,22.844]
[1733399094976,7.99542806,239.67,239.6,7.99542806]
[1733399096158,7.99542806,239.67,239.52,42.41901224]
[1733399096477,7.99542806,239.67,239.58,7.99542806]
[1733399097976,1.0429,239.7,239.49,7.2622]
[1733399098162,1.0429,239.7,239.58,12.5364502]
[1733399098163,12.5364502,239.66,239.58,12.5364502]
[1733399100550,12.5364502,239.67,239.59,12.5364502]
[1733399100749,81.5,239.89,239.65,12.5364502]
[1733399100964,12.5364502,239.77,239.69,12.5364502]
[1733399101552,7.5394,239.74,239.69,12.5364502]
[1733399101757,11.9542,239.79,239.73,12.5364502]
[1733399105073,19.0411,239.84,239.75,12.5364502]
[1733399105463,19.0411,239.84,239.77,12.5364502]
[1733399107187,12.5364502,239.83,239.75,12.5364502]
[1733399107682,19.0411,239.84,239.77,12.5364502]
[1733399110091,12.5364502,239.89,239.81,12.5364502]
[1733399110693,18.8227,239.9,239.83,12.5364502]
[1733399113494,12.5364502,239.89,239.83,12.5364502]
[1733399114692,18.8227,239.9,239.83,12.5364502]
[1733399114864,31.3591502,239.9,239.82,12.5364502]
[1733399118192,12.5364502,239.89,239.82,12.5364502]
[1733399119786,12.5364502,239.87,239.8,12.5364502]
[1733399119966,8.01098438,239.84,239.77,8.01098438]
[1733399120172,8.01098438,239.83,239.76,8.01098438]
[1733399120671,8.01098438,239.83,239.71,0.12549]
[1733399120881,8.01098438,239.83,239.76,8.01098438]
[1733399121892,8.01098438,239.81,239.67,10.4307]
[1733399122068,12.52102072,239.81,239.74,12.52102072]
[1733399124001,12.52102072,239.79,239.72,12.52102072]
[1733399124892,12.52102072,239.78,239.71,12.52102072]
[1733399125095,12.52102072,239.79,239.72,12.52102072]
[1733399125400,12.52102072,239.78,239.71,12.52102072]
[1733399125576,12.52102072,239.77,239.7,32.52102072]
[1733399125782,12.52102072,239.78,239.71,12.52102072]
[1733399129123,12.52102072,239.77,239.7,12.52102072]
[1733399129604,12.52102072,239.76,239.69,12.52102072]
[1733399129802,12.52102072,239.77,239.7,12.52102072]
[1733399130284,12.52102072,239.78,239.71,12.52102072]
[1733399130485,30.97132072,239.79,239.72,12.52102072]
[1733399131010,12.52102072,239.78,239.7,12.52102072]
[1733399131181,12.52102072,239.77,239.7,12.52102072]
[1733399131683,12.52102072,239.78,239.71,12.52102072]
[1733399132711,12.52102072,239.78,239.7,12.52102072]
[1733399134801,12.52102072,239.78,239.68,20.0]
[1733399135003,12.52102072,239.77,239.7,12.52102072]
[1733399135304,12.52102072,239.78,239.71,12.52102072]
[1733399138216,12.52102072,239.75,239.68,12.52102072]
[1733399138392,12.52102072,239.74,239.67,12.52102072]
[1733399138884,12.52102072,239.73,239.66,12.02102072]
[1733399141693,12.52102072,239.7,239.62,12.52102072]
[1733399141892,12.52102072,239.69,239.62,12.52102072]
[1733399142096,8.02123137,239.69,239.62,8.02123137]
[1733399142300,8.02123137,239.68,239.61,8.02123137]
[1733399142621,8.02123137,239.67,239.6,8.02123137]
[1733399143497,8.02123137,239.67,239.54,0.12549]
[1733399143688,8.02123137,239.66,239.59,8.02123137]
[1733399144493,8.02123137,239.67,239.6,8.02123137]
[1733399144890,8.02123137,239.67,239.53,19.3355]
[1733399145095,8.02123137,239.66,239.59,8.02123137]
[1733399145309,8.02123137,239.66,239.58,8.02123137]
[1733399145819,8.02123137,239.66,239.59,8.02123137]
[1733399146109,8.02123137,239.67,239.59,8.02123137]
[1733399146312,8.02123137,239.63,239.51,20.0]
[1733399146516,8.02123137,239.63,239.56,8.02123137]
[1733399146689,23.776884,239.69,239.58,8.02123137]
[1733399146886,18.3342,239.73,239.61,8.02123137]
[1733399147111,18.3342,239.73,239.65,8.02123137]
[1733399147286,18.3342,239.73,239.67,8.02123137]
[1733399147497,18.3856,239.79,239.7,8.02123137]
[1733399147703,8.02123137,239.77,239.7,8.02123137]
[1733399147918,8.02123137,239.78,239.7,8.02123137]
[1733399148492,8.02123137,239.76,239.69,8.02123137]
[1733399149520,8.02123137,239.74,239.64,20.0]
[1733399149817,18.3856,239.79,239.64,20.0]
[1733399149818,8.02123137,239.75,239.68,8.02123137]
[1733399150224,8.02123137,239.75,239.65,0.12549]
[1733399150432,8.02123137,239.74,239.66,8.02123137]
[1733399150609,8.02123137,239.73,239.65,8.14672137]
[1733399151525,8.02123137,239.74,239.66,8.02123137]
[1733399151713,8.02123137,239.75,239.68,8.02123137]
[1733399152210,8.02123137,239.77,239.7,8.02123137]
[1733399152594,8.02123137,239.76,239.69,8.02123137]
[1733399152816,8.02123137,239.76,239.68,8.02123137]
[1733399153634,8.02123137,239.75,239.68,8.02123137]
[1733399154129,8.02123137,239.75,239.67,8.02123137]
[1733399156724,19.4281,239.79,239.7,8.02123137]
[1733399156927,8.02123137,239.78,239.7,8.02123137]
[1733399157130,18.3856,239.79,239.7,8.02123137]
[1733399157314,26.40683137,239.79,239.7,8.02123137]
[1733399158235,8.02123137,239.77,239.7,8.02123137]
[1733399160330,26.40683137,239.79,239.7,8.02123137]
[1733399160727,18.3856,239.79,239.72,8.02123137]
[1733399160905,26.40683137,239.79,239.72,8.02123137]
[1733399161102,7.2485,239.84,239.78,8.02123137]
[1733399161313,7.2485,239.84,239.8,8.02123137]
[1733399162005,7.2485,239.84,239.78,8.02123137]
[1733399163427,848.42208753,240.0,239.84,0.12549]
[1733399163632,848.42208753,240.0,239.94,23.776884]
[1733399163931,848.42208753,240.0,239.99,0.12549]
[1733399164137,848.42208753,240.0,239.99,8.02123137]
[1733399164312,848.42208753,240.0,239.96,0.12549]
[1733399164515,848.42208753,240.0,239.98,20.0]
[1733399164713,848.42208753,240.0,239.99,8.14672137]
[1733399164932,848.42208753,240.0,239.99,32.04909537]
[1733399165149,848.42208753,240.0,239.99,32.17458537]
[1733399165748,848.42208753,240.0,239.99,24.027864]
[1733399165931,848.42208753,240.0,239.99,32.04909537]
[1733399166137,848.42208753,240.0,239.99,36.51800858]
[1733399166729,848.42208753,240.0,239.99,49.00815316]
[1733399167725,757.89407269,240.0,239.99,49.00815316]
[1733399168441,757.89407269,240.0,239.99,49.13364316]
[1733399168644,757.89407269,240.0,239.99,48.88266316]
[1733399168828,757.89407269,240.0,239.99,36.39251858]
[1733399171858,757.89407269,240.0,239.99,49.13364316]
[1733399173152,757.89407269,240.0,239.99,36.64349858]
[1733399174757,757.89407269,240.0,239.99,40.80749858]
[1733399175443,757.89407269,240.0,239.99,16.65414458]
[1733399176857,757.89407269,240.0,239.99,4.164]
[1733399179159,757.89407269,240.0,239.99,16.65414458]
[1733399179454,757.89407269,240.0,239.99,40.55651858]
[1733399179861,757.89407269,240.0,239.99,16.65414458]
[1733399182754,757.89407269,240.0,239.99,4.164]
[1733399184756,757.89407269,240.0,239.99,16.65414458]
[1733399184960,757.89407269,240.0,239.99,40.43102858]
[1733399185260,757.89407269,240.0,239.99,40.55651858]
[1733399186348,757.89407269,240.0,239.99,16.77963458]
[1733399187560,757.89407269,240.0,239.99,0.12549]
[1733399190452,757.89407269,240.0,239.99,4.28949]
[1733399191561,757.89407269,240.0,239.98,4.164]
[1733399192768,757.89407269,240.0,239.99,24.164]
[1733399194167,757.89407269,240.0,239.96,4.164]
[1733399194471,757.89407269,240.0,239.99,4.164]
[1733399195248,757.89407269,240.0,239.94,4.164]
[1733399195452,757.89407269,240.0,239.97,4.164]
[1733399195644,757.89407269,240.0,239.99,4.164]
[1733399196668,757.89407269,240.0,239.99,24.164]
[1733399196968,757.89407269,240.0,239.99,36.77963458]
[1733399197265,757.89407269,240.0,239.99,60.68200858]
[1733399197642,757.89407269,240.0,239.99,66.80860668]
[1733399199648,757.89407269,240.0,239.99,60.80749858]
[1733399199971,757.89407269,240.0,239.99,66.93409668]
[1733399200358,757.89407269,240.0,239.99,79.42424126]
[1733399200658,757.89407269,240.0,239.99,66.93409668]
[1733399201041,757.89407269,240.0,239.99,66.80860668]
[1733399203463,757.89407269,240.0,239.99,60.68200858]
[1733399204264,757.89407269,240.0,239.99,66.93409668]
[1733399204546,757.89407269,240.0,239.99,79.42424126]
[1733399205053,757.89407269,240.0,239.99,66.93409668]
[1733399206676,757.89407269,240.0,239.99,48.191864]
[1733399206872,757.89407269,240.0,239.99,60.68200858]
[1733399207048,757.89407269,240.0,239.99,66.80860668]
[1733399209772,757.89407269,240.0,239.99,60.68200858]
[1733399210471,757.89407269,240.0,239.99,66.80860668]
[1733399211677,757.89407269,240.0,239.99,66.93409668]
[1733399211980,757.89407269,240.0,239.99,79.42424126]
[1733399213295,757.89407269,240.0,239.99,66.80860668]
[1733399213572,757.89407269,240.0,239.99,66.93409668]
[1733399213877,757.89407269,240.0,239.99,79.42424126]
[1733399214676,757.89407269,240.0,239.99,66.93409668]
[1733399215180,757.89407269,240.0,239.99,54.4439521]
[1733399215350,757.89407269,240.0,239.99,79.42424126]
[1733399217975,757.89407269,240.0,239.99,70.42675226]
[1733399218273,757.89407269,240.0,239.99,94.4009525]
[1733399219676,753.29750791,240.0,239.99,94.4009525]
[1733399219981,687.28749709,240.0,239.99,94.4009525]
[1733399221469,687.28749709,240.0,239.99,62.05888218]
[1733399221674,687.28749709,240.0,239.99,38.28199818]
[1733399223372,687.28749709,240.0,239.99,62.30986218]
[1733399223583,687.28749709,240.0,239.99,63.96153777]
[1733399227382,687.28749709,240.0,239.99,54.1929721]
[1733399227566,687.28749709,240.0,239.99,62.18437218]
[1733399229378,687.28749709,240.0,239.99,56.05777408]
[1733399231460,687.28749709,240.0,239.99,48.066374]
[1733399231790,687.28749709,240.0,239.99,35.93228408]
[1733399231972,687.28749709,240.0,239.99,36.05777408]
[1733399238094,687.28749709,240.0,239.99,4.28949]
[1733399238265,687.28749709,240.0,239.99,12.28089008]
[1733399239594,687.28749709,240.0,239.99,4.164]
[1733399239800,687.28749709,240.0,239.99,12.15540008]
[1733399241699,687.28749709,240.0,239.99,4.28949]
[1733399241880,687.28749709,240.0,239.99,12.28089008]
[1733399243686,687.28749709,240.0,239.99,4.164]
[1733399243879,687.28749709,240.0,239.99,12.15540008]
[1733399246593,687.28749709,240.0,239.99,4.164]
[1733399246799,687.28749709,240.0,239.99,12.15540008]
[1733399248071,687.28749709,240.0,239.99,12.28089008]
[1733399248265,687.28749709,240.0,239.99,12.15540008]
[1733399251503,687.28749709,240.0,239.99,12.28089008]
[1733399252305,687.28749709,240.0,239.99,4.164]
[1733399252680,687.28749709,240.0,239.99,12.15540008]
[1733399254709,687.28749709,240.0,239.99,35.93228408]
[1733399254906,687.28749709,240.0,239.99,4.164]
[1733399256008,687.28749709,240.0,239.99,27.940884]
[1733399256391,687.28749709,240.0,239.99,4.164]
[1733399256784,687.28749709,240.0,239.99,28.066374]
[1733399259308,687.28749709,240.0,239.94,4.164]
[1733399259519,687.28749709,240.0,239.96,12.15540008]
[1733399259897,687.28749709,240.0,239.95,23.902374]
[1733399259898,687.28749709,240.0,239.99,24.164]
[1733399261206,687.28749709,240.0,239.99,32.28089008]
[1733399261614,687.28749709,240.0,239.99,24.164]
[1733399261905,687.28749709,240.0,239.99,12.15540008]
[1733399263719,687.28749709,240.0,239.99,4.164]
[1733399264012,687.28749709,240.0,239.99,12.15540008]
[1733399265705,687.28749709,240.0,239.99,36.05777408]
[1733399266714,687.28749709,240.0,239.99,36.18326408]
[1733399268810,687.28749709,240.0,239.99,28.066374]
[1733399269204,687.28749709,240.0,239.99,36.05777408]
[1733399271697,687.28749709,240.0,239.99,36.18326408]
[1733399271910,687.28749709,240.0,239.99,28.066374]
[1733399272099,687.28749709,240.0,239.99,36.05777408]
[1733399273623,687.28749709,240.0,239.99,41.93777415]
[1733399275615,687.28749709,240.0,239.99,33.94637407]
[1733399276132,687.28749709,240.0,239.99,41.93777415]
[1733399276925,687.28749709,240.0,239.99,9.79302007]
[1733399277110,687.28749709,240.0,239.99,12.15540008]
[1733399278219,687.28749709,240.0,239.99,36.05777408]
[1733399284546,687.28749709,240.0,239.99,36.18326408]
[1733399284743,687.28749709,240.0,239.99,41.81228415]
[1733399284952,687.28749709,240.0,239.99,73.77788447]
[1733399285139,687.28749709,240.0,239.99,41.81228415]
[1733399286644,687.28749709,240.0,239.99,41.93777415]
[1733399286830,687.28749709,240.0,239.99,33.82088407]
[1733399287031,687.28749709,240.0,239.99,41.81228415]
[1733399290557,685.28749709,240.0,239.99,41.81228415]
[1733399291235,685.28749709,240.0,239.99,41.93777415]
[1733399292332,685.28749709,240.0,239.99,73.90337447]
[1733399295050,685.16209709,240.0,239.99,81.70687447]
[1733399295256,519.29452721,240.0,239.99,81.70687447]
[1733399295549,503.83672721,240.0,239.99,81.70687447]
[1733399295853,377.33043159,240.0,239.99,81.70687447]
[1733399296063,375.67043159,240.0,239.99,81.70687447]
[1733399297356,280.03312049,240.0,239.99,81.70687447]
[1733399297551,254.06785846,240.0,239.99,81.70687447]
[1733399297744,174.76255847,240.0,239.99,81.70687447]
[1733399297927,167.98925847,240.0,239.99,81.70687447]
[1733399298129,22.82437181,240.0,239.99,81.70687447]
[1733399298426,16.25187181,240.0,239.99,82.33155215]
[1733399298827,13.83127181,240.0,239.99,82.33155215]
[1733399299057,11.41067181,240.0,239.99,82.33155215]
[1733399299437,11.41067181,240.0,239.99,59.87251693]
[1733399300052,11.41067181,240.0,239.99,60.12349693]
[1733399300744,11.41067181,240.0,239.99,83.90038093]
[1733399301136,1.0,240.1,240.04,0.25098]
[1733399301359,1.0,240.1,240.09,7.99140008]
[1733399301848,1.0,240.1,240.09,8.24238008]
[1733399302050,1.0,240.1,240.09,0.25098]
[1733399302240,1.0,240.1,240.09,13.92967788]
[1733399304961,0.4967167,240.23,240.09,69.5466722]
[1733399305139,0.4967167,240.23,240.13,43.902374]
[1733399305339,0.4967167,240.23,240.21,0.12549]
[1733399307443,0.4967167,240.23,240.2,7.99140008]
[1733399307968,0.4967167,240.23,240.22,7.99140008]
[1733399308171,0.4967167,240.23,240.15,0.87544459]
[1733399308172,0.4967167,240.23,240.2,7.99140008]
[1733399308471,0.4967167,240.23,240.21,0.12549]
[1733399309751,0.4967167,240.23,240.22,7.99140008]
[1733399309940,0.4967167,240.23,240.22,8.11689008]
[1733399310359,0.4967167,240.23,240.22,8.36787008]
[1733399310749,0.4967167,240.23,240.22,13.1560807]
[1733399312640,0.4967167,240.23,240.14,0.62424456]
[1733399313040,0.4967167,240.23,240.22,20.0]
[1733399313864,0.4967167,240.23,240.2,7.99140008]
[1733399314059,0.4967167,240.23,240.18,7.99140008]
[1733399314263,7.99140008,240.22,240.12,0.62448226]
[1733399314566,8.48811678,240.23,240.16,7.99140008]
[1733399315270,0.4967167,240.23,240.19,7.99140008]
[1733399315478,0.4967167,240.23,240.18,7.99140008]
[1733399315780,0.4967167,240.23,240.18,0.12549]
[1733399316077,0.4967167,240.23,240.13,0.25098]
[1733399316078,15.16560008,240.21,240.14,7.99140008]
[1733399316453,11.9467,240.22,240.16,7.99140008]
[1733399316855,11.9467,240.22,240.17,7.99140008]
[1733399317576,11.9467,240.22,240.18,0.12549]
[1733399318982,11.9467,240.22,240.17,7.99140008]
[1733399319179,11.9467,240.22,240.15,7.99140008]
[1733399320475,19.93810008,240.22,240.15,7.99140008]
[1733399320660,19.93810008,240.22,240.14,0.12549]
[1733399321379,19.93810008,240.22,240.13,27.99140008]
[1733399321380,7.99140008,240.2,240.13,20.0]
[1733399321573,23.776884,240.19,240.12,7.99140008]
[1733399321753,5.2037,240.21,240.12,7.99140008]
[1733399322078,7.99140008,240.2,240.12,7.99140008]
[1733399322376,31.76828408,240.2,240.12,7.99140008]
[1733399323977,7.99140008,240.16,240.08,7.99140008]
[1733399324177,23.776884,240.15,240.08,7.99140008]
[1733399325377,23.776884,240.17,240.09,0.12549]
[1733399325760,7.6474,240.19,240.09,0.12549]
[1733399325960,7.99140008,240.17,240.09,0.12549]
[1733399326163,23.776884,240.16,240.06,20.0]
[1733399326414,23.776884,240.16,240.08,7.99140008]
[1733399328057,23.776884,240.14,240.01,0.62476109]
[1733399328362,23.776884,240.14,240.06,7.99140008]
[1733399329080,28.94859008,240.13,240.01,0.62476109]
[1733399329278,37.17130032,240.12,239.96,7.99140008]
[1733399329485,31.76828408,240.11,240.01,7.99140008]
[1733399330483,23.776884,240.11,240.01,7.99140008]
[1733399330683,20.8317,240.13,239.89,7.9099]
[1733399330684,7.99140008,240.1,240.03,7.99140008]
[1733399330979,7.99140008,240.12,240.05,7.99140008]
[1733399331673,7.99140008,240.12,240.06,0.12549]
[1733399332185,7.99140008,240.12,240.05,7.99140008]
[1733399332760,23.776884,240.11,240.05,7.99140008]
[1733399332973,23.776884,240.11,240.03,7.99140008]
[1733399333152,20.8317,240.13,240.04,0.12549]
[1733399333356,28.82310008,240.13,240.05,7.99140008]
[1733399334480,20.8317,240.13,240.07,7.99140008]
[1733399334779,7.99140008,240.15,240.08,0.12549]
[1733399338180,24.987,240.2,239.99,18.665]
[1733399338181,7.99140008,240.13,239.99,18.665]
[1733399338381,7.99140008,240.11,240.02,27.99140008]
[1733399338679,7.99140008,240.11,240.02,7.99140008]
[1733399339277,23.776884,240.16,240.04,7.99140008]
[1733399339460,7.99140008,240.13,240.04,7.99140008]
[1733399340282,7.99140008,240.13,240.07,20.0]
[1733399340784,7.99140008,240.13,240.08,0.12549]
[1733399342583,7.99140008,240.15,240.08,0.12549]
[1733399342764,7.99140008,240.15,240.07,20.0]
[1733399343278,7.99140008,240.16,240.11,20.0]
[1733399344891,7.99140008,240.16,240.09,20.0]
[1733399345481,7.99140008,240.14,240.09,20.0]
[1733399349699,23.902374,240.19,240.09,20.0]
[1733399349873,7.99140008,240.16,240.09,20.0]
[1733399350768,19.783,240.2,240.1,0.12549]
[1733399350989,7.99140008,240.18,240.1,0.12549]
[1733399351587,7.99140008,240.18,240.1,8.11689008]
[1733399351900,7.99140008,240.16,240.08,7.99140008]
[1733399352067,7.99140008,240.16,240.09,0.12549]
[1733399355903,7.99140008,240.18,240.1,7.99140008]
[1733399356189,7.99140008,240.18,240.11,0.12549]
[1733399358201,8.1827,240.2,240.11,0.12549]
[1733399358384,7.99140008,240.18,240.11,0.12549]
[1733399359292,8.1827,240.2,240.11,0.12549]
[1733399359480,7.99140008,240.18,240.11,0.12549]
[1733399360300,7.99140008,240.2,240.12,7.99140008]
[1733399360506,7.99140008,240.2,240.13,0.12549]
[1733399360797,21.138,240.25,240.13,0.12549]
[1733399361001,7.99140008,240.22,240.13,0.12549]
[1733399361507,21.138,240.25,240.15,20.0]
[1733399361675,7.99140008,240.21,240.16,0.12549]
[1733399362310,7.99140008,240.21,240.15,20.0]
[1733399366807,8.48811678,240.23,240.15,20.0]
[1733399368007,0.4967167,240.23,240.16,8.11689008]
[1733399368186,8.48811678,240.23,240.16,8.11689008]
[1733399370305,8.48811678,240.23,240.16,0.12549]
[1733399370804,0.4967167,240.23,240.18,0.12549]
[1733399371307,0.4967167,240.23,240.22,8.11689008]
[1733399371815,0.4967167,240.23,240.22,13.56103872]
[1733399372691,0.4967167,240.23,240.22,8.11689008]
[1733399372884,0.4967167,240.23,240.22,7.99140008]
[1733399373086,0.4967167,240.23,240.22,8.11689008]
[1733399373709,0.4967167,240.23,240.22,8.24238008]
[1733399375996,0.4967167,240.23,240.2,0.12549]
[1733399376197,0.4967167,240.23,240.22,7.99140008]
[1733399377085,0.4967167,240.23,240.22,8.11689008]
[1733399379013,0.4967167,240.23,240.21,20.0]
[1733399379298,0.4967167,240.23,240.22,7.99140008]
[1733399379513,0.4967167,240.23,240.22,8.11689008]
[1733399381019,0.4967167,240.23,240.22,0.12549]
[1733399381310,0.4967167,240.23,240.21,0.12549]
[1733399381501,0.4967167,240.23,240.18,7.5215]
[1733399381707,0.4967167,240.23,240.18,15.51290008]
[1733399383818,8.48811678,240.23,240.19,0.12549]
[1733399383998,8.48811678,240.23,240.17,0.12549]
[1733399384492,7.99140008,240.21,240.13,18.5074]
[1733399384696,7.99140008,240.2,240.13,8.0967]
[1733399384894,7.99140008,240.21,240.14,7.99140008]
[1733399385607,0.4967167,240.23,240.14,7.99140008]
[1733399385818,7.99140008,240.21,240.14,7.99140008]
[1733399386627,7.99140008,240.21,240.15,0.12549]
[1733399388426,7.99140008,240.22,240.15,0.12549]
[1733399388900,7.99140008,240.21,240.15,0.12549]
[1733399389824,0.4967167,240.23,240.15,0.12549]
[1733399390007,7.99140008,240.22,240.15,0.12549]
[1733399390628,7.99140008,240.22,240.13,8.0967]
[1733399390799,7.99140008,240.22,240.15,0.12549]
[1733399391429,0.4967167,240.23,240.15,0.12549]
[1733399391628,7.99140008,240.22,240.15,0.12549]
[1733399395616,7.99140008,240.2,240.13,8.0967]
[1733399396735,0.4967167,240.23,240.13,8.0967]
[1733399396929,7.99140008,240.21,240.14,7.99140008]
[1733399397234,7.99140008,240.21,240.15,0.12549]
[1733399398027,7.99140008,240.21,240.14,0.12549]
[1733399400602,7.99140008,240.21,240.14,8.11689008]
[1733399402743,7.99140008,240.21,240.14,0.12549]
[1733399403108,7.99140008,240.21,240.13,16.08810008]
[1733399403330,7.99140008,240.19,240.1,12.0875]
[1733399403524,7.99140008,240.18,240.1,7.99140008]
[1733399403929,7.99140008,240.16,240.07,7.6133]
[1733399404118,7.99140008,240.16,240.09,7.99140008]
[1733399404307,7.99140008,240.16,240.07,7.6133]
[1733399404507,7.99140008,240.14,240.01,11.04077333]
[1733399404826,7.99140008,240.13,240.06,7.99140008]
[1733399405443,7.99140008,240.14,240.07,7.99140008]
[1733399405815,7.99140008,240.16,240.07,7.99140008]
[1733399406037,7.99140008,240.16,240.08,0.12549]
[1733399408836,7.99140008,240.16,240.08,8.11689008]
[1733399410921,7.99140008,240.16,240.03,11.04007095]
[1733399411122,7.99140008,240.16,240.08,7.99140008]
[1733399414838,7.99140008,240.18,240.09,0.12549]
[1733399416211,7.99140008,240.18,240.09,8.11689008]
[1733399416417,7.99140008,240.16,240.09,0.12549]
[1733399416819,7.99140008,240.16,240.08,7.99140008]
[1733399417026,7.99140008,240.14,240.07,0.12549]
[1733399420127,7.99140008,240.16,240.07,0.12549]
[1733399420329,7.99140008,240.16,240.08,7.99140008]
[1733399421050,23.902374,240.19,240.08,7.99140008]
[1733399421346,7.99140008,240.16,240.08,7.99140008]
[1733399421813,7.99140008,240.17,240.08,7.99140008]
[1733399422650,0.12549,240.19,240.03,0.62479299]
[1733399422651,7.99140008,240.19,240.1,7.99140008]
[1733399423136,7.99140008,240.19,240.11,0.12549]
[1733399423523,7.99140008,240.21,240.12,7.99140008]
[1733399423722,7.99140008,240.21,240.13,0.12549]
[1733399424351,7.99140008,240.18,240.03,10.4149]
[1733399424526,7.99140008,240.16,240.07,7.99140008]
[1733399424943,7.99140008,240.16,240.08,0.12549]
[1733399425452,7.99140008,240.16,240.07,7.99140008]
[1733399425823,23.902374,240.18,240.07,7.99140008]
[1733399426026,7.99140008,240.15,240.07,7.99140008]
[1733399427255,7.99140008,240.15,240.07,0.12549]
[1733399428447,7.99140008,240.15,240.05,7.99140008]
[1733399428643,7.99140008,240.13,240.02,7.5957]
[1733399428850,7.99140008,240.13,240.05,7.99140008]
[1733399429351,7.99140008,240.13,240.04,7.99140008]
[1733399429552,7.99140008,240.11,240.02,7.5957]
[1733399429857,7.99140008,240.11,240.03,7.99140008]
[1733399430764,7.99140008,240.11,240.02,7.5957]
[1733399431346,23.776884,240.14,240.02,7.5957]
[1733399431347,7.99140008,240.09,240.02,7.5957]
[1733399431555,23.776884,240.12,240.02,7.5957]
[1733399431728,7.99140008,240.1,240.02,7.5957]
[1733399432941,7.99140008,240.1,240.03,7.99140008]
[1733399434050,23.776884,240.14,240.03,7.99140008]
[1733399434245,7.99140008,240.13,240.05,7.99140008]
[1733399434842,7.6665,240.16,240.07,7.99140008]
[1733399435154,7.09619784,240.17,240.08,0.12549]
[1733399435362,7.99140008,240.16,240.08,0.12549]
[1733399436656,7.99140008,240.14,240.07,7.99140008]
[1733399438450,0.12549,240.13,240.02,7.5957]
[1733399438630,7.99140008,240.11,240.03,8.11689008]
[1733399439558,23.902374,240.13,240.03,8.11689008]
[1733399439867,7.99140008,240.11,240.03,8.11689008]
[1733399440162,7.99140008,240.11,240.03,0.12549]
[1733399440346,7.99140008,240.11,240.04,7.99140008]
[1733399442766,31.89377408,240.13,240.04,7.99140008]
[1733399444861,7.99140008,240.12,240.04,7.99140008]